fUSD/lending_fUSD_20260208
["ID","MTS","AMOUNT","RATE_DAILY","PERIOD"]
[404778089,1770537039285,-600.0,0.00032396,2]
[404778090,1770537039295,-522.54,0.00032396,2]
[404778091,1770537039308,-10362.1406117,0.00032454,2]
[404778092,1770537039318,-1000.0,0.000325,2]
[404778093,1770537039327,-509.0,0.00032616,2]
[404778094,1770537039337,-4528.8181419,0.00032832,2]
[404778095,1770537039347,-450.0539765,0.00032845,2]
[404778096,1770537039357,-168.0,0.00033,14]
[404778097,1770537039366,-1335.0,0.00033056,2]
[404778098,1770537039376,-3484.0,0.00033056,2]
[404778099,1770537039386,-616.0,0.00033056,2]
[404778100,1770537039396,-1411.0,0.00033056,2]
[404778101,1770537039405,-1272.0,0.00033056,2]
[404778102,1770537039415,-917.0,0.00033056,2]
[404778103,1770537039424,-1206.0,0.00033056,2]
[404778104,1770537039434,-3255.0,0.00033056,2]
[404778105,1770537039442,-412.0,0.00033056,2]
[404778106,1770537039452,-18680.35416951,0.00033595,2]
[404778107,1770537039462,-1379.8,0.00033855,2]
[404778108,1770537039472,-500.0,0.00034005,3]
[404778109,1770537039483,-10362.1406117,0.00034115,2]
[404778110,1770537039492,-150.32026889,0.00034132,2]
[404778111,1770537039503,-823.0,0.00034181,2]
[404778112,1770537039512,-566.98276011,0.00034237,2]
[404778113,1770537039523,-509.0,0.00034439,4]
[404778114,1770537039532,-1027.76894085,0.00034888,20]
[404778115,1770537039542,-1053.46216627,0.00034888,20]
[404778116,1770537039550,-1120.18163017,0.00034888,20]
[404778117,1770537039561,-1120.0521078,0.00034888,20]
[404778118,1770537039572,-1138.43507622,0.00034888,20]
[404778119,1770537039584,-1011.52948099,0.00034888,20]
[404778120,1770537039595,-1101.54182924,0.00034888,20]
[404778121,1770537039605,-1036.43356962,0.00034888,20]
[404778122,1770537039616,-166.66,0.00034894,2]
[404778123,1770537039626,-2605.711302,0.00034904,15]
[404778124,1770537039636,-1500.0,0.00034904,15]
[404778125,1770537039647,-1500.0,0.00034904,15]
[404778126,1770537039658,-150.0,0.00034904,2]
[404778127,1770537039668,-23329.34949606,0.00035,2]
[404778128,1770537039678,-150.32026889,0.00035046,2]
[404778129,1770537039690,-151.0,0.0003509,14]
[404778130,1770537039700,-18680.35416951,0.00035093,2]
[404778131,1770537039711,-500.0,0.00035115,2]
[404778132,1770537039722,-500.0,0.00035116,2]
[404778133,1770537039732,-500.424752,0.00035117,2]
[404778134,1770537039741,-123103.44549684,0.0003526,2]
[404778135,1770537039753,-151.0,0.0003526,28]
[404778136,1770537039763,-151.0,0.0003526,28]
[404778137,1770537039775,-151.0,0.0003526,28]
[404778138,1770537039784,-151.0,0.0003526,7]
[404778139,1770537039796,-212.89576,0.0003526,7]
[404778140,1770537039806,-168.0,0.00035314,2]
[404778141,1770537039816,-500.0,0.0003537,2]
[404778142,1770537039825,-168.0,0.0003556,2]
[404778143,1770537039836,-168.0,0.00035567,2]
[404778144,1770537039847,-151.24068403,0.00035592,2]
[404778145,1770537039858,-1000.0,0.00035615,2]
[404778146,1770537039867,-1000.0,0.00035615,2]
[404778147,1770537039877,-200.0,0.00035616,2]
[404778148,1770537039887,-200.0,0.00035616,2]
[404778149,1770537039897,-200.0,0.00035616,2]
[404778150,1770537039907,-200.0,0.00035616,2]
[404778151,1770537039917,-3688.51,0.00035622,2]
[404778152,1770537039927,-168.0,0.00035671,2]
[404778153,1770537039938,-182.34249586,0.00035694,15]
[404778154,1770537039948,-10362.1406117,0.00035776,2]
[404778155,1770537039957,-154.55,0.00035882,2]
[404778156,1770537039967,-11415.0,0.000359,5]
[404778157,1770537039977,-164.62786293,0.000359,10]
[404778158,1770537039988,-150.32026889,0.0003596,2]
[404778159,1770537039998,-200.0,0.00035972,2]
[404778160,1770537040009,-200.0,0.00035972,2]
[404778161,1770537040019,-200.0,0.00035972,2]
[404778162,1770537040030,-200.0,0.00035972,2]
[404778163,1770537040041,-152.56,0.0003599,2]
[404778164,1770537040052,-151.0,0.00035997,14]
[404778165,1770537040062,-487.0,0.00035997,2]
[404778166,1770537040071,-670.71,0.00035997,2]
[404778167,1770537040081,-185509.86715628,0.00036,2]
[404778168,1770537040090,-259.515837,0.00036,31]
[404778169,1770537040101,-151.0,0.00036,31]
[404778170,1770537040111,-151.0,0.00036,31]
[404778171,1770537040122,-151.0,0.00036,31]
[404778172,1770537040131,-182.885706,0.00036,31]
[404778173,1770537040144,-182.885706,0.00036,31]
[404778174,1770537040153,-182.885706,0.00036,31]
[404778175,1770537040163,-182.885706,0.00036,31]
[404778176,1770537040174,-151.0,0.00036,28]
[404778177,1770537040184,-151.0,0.00036,28]
[404778178,1770537040194,-151.0,0.00036,28]
[404778179,1770537040204,-151.0,0.00036,31]
[404778180,1770537040215,-151.0,0.00036,7]
[404778181,1770537040226,-166.66,0.00036046,2]
[404778182,1770537040235,-1335.0,0.00036056,2]
[404778183,1770537040246,-3484.0,0.00036056,2]
[404778184,1770537040258,-616.0,0.00036056,2]
[404778185,1770537040267,-1411.0,0.00036056,2]
[404778186,1770537040277,-1272.0,0.00036056,2]
[404778187,1770537040287,-917.0,0.00036056,2]
[404778188,1770537040298,-1206.0,0.00036056,2]
[404778189,1770537040312,-3255.0,0.00036056,2]
[404778190,1770537040323,-412.0,0.00036056,2]
[404778192,1770537040332,-1000.0,0.00036111,2]
[404778193,1770537040343,-9463.34,0.0003614,2]
[404778194,1770537040355,-11982.02,0.000362,14]
[404778195,1770537040365,-566.98276011,0.00036206,2]
[404778196,1770537040374,-509.0,0.00036261,6]
[404778197,1770537040385,-200.0,0.00036332,2]
[404778198,1770537040395,-200.0,0.00036332,2]
[404778199,1770537040404,-200.0,0.00036332,2]
[404778200,1770537040413,-200.0,0.00036332,2]
[404778201,1770537040423,-168.0,0.00036411,2]
[404778202,1770537040432,-168.0,0.00036535,2]
[404778203,1770537040442,-151.0,0.00036589,14]
[404778204,1770537040454,-18680.35416951,0.00036591,2]
[404778205,1770537040464,-150.0,0.00036649,2]
[404778206,1770537040474,-168.0,0.00036656,2]
[404778207,1770537040483,-200.0,0.00036695,2]
[404778208,1770537040492,-200.0,0.00036695,2]
[404778209,1770537040502,-200.0,0.00036695,2]
[404778210,1770537040513,-200.0,0.00036695,2]
[404778211,1770537040524,-168.0,0.00036702,2]
[404778212,1770537040534,-200.0,0.00036767,2]
[404778213,1770537040544,-168.0,0.00036824,2]
[404778214,1770537040555,-150.32026889,0.00036873,2]
[404778215,1770537040565,-1152.0,0.00036951,2]
[404778216,1770537040577,-200.0,0.00036962,2]
[404778217,1770537040587,-1454.75,0.00037,120]
[404778218,1770537040598,-200.0,0.00037062,2]
[404778219,1770537040610,-200.0,0.00037062,2]
[404778220,1770537040619,-200.0,0.00037062,2]
[404778221,1770537040629,-200.0,0.00037062,2]
[404778222,1770537040639,-168.0,0.00037064,2]
[404778223,1770537040649,-600.0,0.00037114,2]
[404778224,1770537040659,-522.54,0.00037114,2]
[404778225,1770537040669,-168.0,0.00037133,2]
[404778226,1770537040679,-152.0,0.00037188,3]
[404778227,1770537040690,-166.66,0.00037198,2]
[404778228,1770537040700,-160.0,0.000372,120]
[404778229,1770537040709,-160.0,0.000372,120]
[404778230,1770537040719,-3516.15150051,0.000372,120]
[404778231,1770537040729,-3516.1515005,0.000372,120]
[404778232,1770537040739,-3516.1515005,0.000372,120]
[404778233,1770537040749,-2000.0,0.000372,7]
[404778234,1770537040759,-2804.0,0.000372,7]
[404778235,1770537040769,-168.0,0.00037292,2]
[404778236,1770537040779,-11982.02,0.000373,14]
[404778237,1770537040788,-10362.1406117,0.00037438,2]
[404778238,1770537040798,-329.93,0.00037452,14]
[404778239,1770537040807,-168.0,0.00037468,2]
[404778240,1770537040817,-168.0,0.0003751,2]
[404778241,1770537040828,-941.53620476,0.00037512,2]
[404778242,1770537040837,-1000.0,0.00037535,14]
[404778243,1770537040847,-200.0,0.00037694,2]
[404778244,1770537040856,-150.32026889,0.00037787,2]
[404778245,1770537040866,-2000.0,0.000378,120]
[404778246,1770537040875,-1000.0,0.00037808,14]
[404778247,1770537040885,-348.37,0.00037833,14]
[404778248,1770537040894,-535.44,0.00037988,120]
[404778249,1770537040902,-1000.0,0.00038082,14]
[404778250,1770537040912,-509.0,0.00038084,8]
[404778251,1770537040921,-537.64120047,0.0003809,2]
[404778257,1770537041218,-671.07308538,0.0003809,2]
[404778258,1770537041325,-328.617,0.00027056,2]
[404778263,1770537045772,-2118.383,0.00027056,2]
[404778264,1770537045783,-2447.0,0.00030056,2]
[404778265,1770537045793,-2447.0,0.00033056,2]
[404778266,1770537045804,-2447.0,0.00036056,2]
[404778267,1770537045814,-505.47278838,0.00038052,2]
[404778268,1770537045823,-5808.22728691,0.0003809,2]
[404778270,1770537046311,-1283.12700213,0.0003809,2]
[404778271,1770537046548,-254.7099998,0.0003809,2]
[404778388,1770537972787,500.0,0.00028227,30]
[404778389,1770537973017,500.0,0.00028227,30]
[404778390,1770537973278,500.0,0.00028227,30]
[404778391,1770537973510,500.0,0.00028227,30]
[404778392,1770537973757,500.0,0.00028227,30]
[404778393,1770537974002,500.0,0.00028227,30]
[404778394,1770537997558,1045.63,0.00035616,30]
[404778402,1770538145326,151.0,0.00033,31]
[404778403,1770538153864,428.35,0.00027582,120]
[404778404,1770538154268,428.35,0.0003103,120]
[404778405,1770538154471,428.35,0.00034477,120]
[404778406,1770538201256,1897.25646279,0.00035616,120]
[404778417,1770538231375,-160.0,0.00026501,2]
[404778418,1770538231387,-160.0,0.00026534,2]
[404778419,1770538231399,-150.13,0.00027056,2]
[404778420,1770538231410,-150.0,0.00027056,2]
[404778421,1770538231420,-300.0,0.00027724,2]
[404778422,1770538231430,-1200.0,0.00027724,2]
[404778423,1770538231441,-9887.03251424,0.00027725,2]
[404778424,1770538231451,-164.62786293,0.00027725,2]
[404778425,1770538231463,-1214.18776018,0.00027725,2]
[404778426,1770538231473,-207.23557636,0.00027815,2]
[404778427,1770538231482,-274.0,0.00027823,2]
[404778428,1770538231491,-300.0,0.00027824,2]
[404778429,1770538231501,-7477.73124239,0.00027825,2]
[404778430,1770538231516,-1295.21988168,0.00027825,2]
[404778431,1770538231528,-682.15500896,0.00027825,2]
[404778432,1770538231541,-492.21212702,0.00027825,2]
[404778433,1770538231554,-885.90736119,0.00027825,2]
[404778434,1770538231571,-321.55982235,0.00027825,2]
[404778435,1770538231583,-1286.0085527,0.00027825,2]
[404778436,1770538231597,-29576.66476149,0.00027825,2]
[404778437,1770538231609,-18358.10235965,0.00027825,2]
[404778438,1770538231621,-1427.00894998,0.00027825,2]
[404778439,1770538231636,-1407.00725734,0.00027825,2]
[404778440,1770538231649,-736.07642552,0.00027825,2]
[404778441,1770538231662,-347.43508066,0.00027825,2]
[404778443,1770538231673,-6779.46985046,0.00027825,2]
[404778445,1770538231684,-2096.41771873,0.00027825,2]
[404778451,1770538237541,-231.94622019,0.00027824,2]
[404778452,1770538237552,-195.28348214,0.00027824,2]
[404778453,1770538237561,-500.0,0.00027824,2]
[404778454,1770538237572,-500.0,0.00027824,2]
[404778455,1770538237583,-289.95212535,0.00027824,2]
[404778456,1770538237593,-500.0,0.00027824,2]
[404778457,1770538237603,-500.0,0.00027824,2]
[404778458,1770538237614,-500.0,0.00027824,2]
[404778459,1770538237625,-47.31817232,0.00027824,2]
[404778460,1770538237639,-452.68182768,0.00027824,2]
[404778461,1770538237651,-363.87150152,0.00027824,2]
[404778462,1770538237661,-936346.32413673,0.00027825,2]
[404778463,1770538237675,-735.44834031,0.00027825,2]
[404778464,1770538237686,-3059.22637876,0.00027825,2]
[404778465,1770538237698,-449.3404125,0.00027825,2]
[404778466,1770538237710,-550.6595875,0.00027825,2]
[404778471,1770538239610,-21057.89517436,0.00027825,2]
[404778475,1770538239880,-412.0,0.00027825,2]
[404778476,1770538239929,-480.21317415,0.00027825,2]
[404778477,1770538239941,-1048.855,0.00027825,2]
[404778478,1770538239954,-284.536811,0.00027825,2]
[404778821,1770538245309,-3644.65481067,0.00027825,2]
[404778822,1770538245324,-628944.3452129,0.00027825,2]
[404778823,1770538245336,-348.375,0.00027825,2]
[404778839,1770538260660,1000.0,0.00035616,30]
[404778841,1770538293736,151.0,0.00034025,31]
[404778842,1770538295749,151.0,0.00034025,31]
[404778843,1770538297266,151.0,0.00034025,31]
[404778844,1770538313073,450.0,0.00035616,30]
[404778849,1770538361968,200.0,0.000355,120]
[404778861,1770538572352,200.0,0.00035616,30]
[404778866,1770538609135,4094.0,0.00025,2]
[404778871,1770538879957,750.0,0.00035616,30]
[404778872,1770538895626,154.756001,0.0003526,31]
[404778873,1770538897719,481.402,0.00035616,42]
[404778874,1770538903746,151.0,0.0003526,31]
[404778875,1770538905442,151.0,0.0003526,31]
[404778878,1770539019456,182.885706,0.0003526,31]
[404778879,1770539020952,182.885706,0.0003526,31]
[404778880,1770539022514,182.885706,0.0003526,31]
[404778881,1770539024018,182.885706,0.0003526,31]
[404778882,1770539045362,275.339892,0.0003526,31]
[404778884,1770539096549,166.66,0.00026374,30]
[404778885,1770539096889,166.66,0.00026929,30]
[404778886,1770539097149,166.66,0.00027484,30]
[404778887,1770539097357,166.66,0.00028039,30]
[404778888,1770539097559,166.66,0.00028595,30]
[404778889,1770539097767,166.66,0.0002915,30]
[404778890,1770539144562,259.515837,0.0003526,31]
[404778895,1770539309564,268.80550178,0.000107,2]
[404778959,1770539437730,-1259.71972,0.00025964,2]
[404778960,1770539437742,-250.0,0.00026029,2]
[404778961,1770539437751,-160.0,0.00026076,2]
[404778962,1770539437760,-160.0,0.00026094,2]
[404778963,1770539437769,-300.0,0.0002639,2]
[404778964,1770539437778,-300.0,0.0002639,2]
[404778965,1770539437787,-1200.0,0.0002639,2]
[404778966,1770539437796,-1272.0,0.00026391,2]
[404778967,1770539437805,-1206.0,0.00026391,2]
[404778968,1770539437815,-917.0,0.00026391,2]
[404778969,1770539437823,-3484.0,0.00026391,2]
[404778970,1770539437832,-2447.0,0.00026391,2]
[404778971,1770539437842,-150.0,0.0002735,2]
[404778972,1770539437851,-5376.49190111,0.00027515,2]
[404778973,1770539437860,-165.4252,0.00027525,2]
[404778974,1770539437869,-500.0,0.00027583,2]
[404778975,1770539437880,-500.0,0.00027624,2]
[404778976,1770539437889,-579.20571826,0.00027624,2]
[404778977,1770539437898,-117470.21,0.00027625,2]
[404778978,1770539437907,-10046.78492949,0.00027625,2]
[404778979,1770539437916,-2424.9117,0.00027725,2]
[404778980,1770539437925,-1000.0,0.00027725,2]
[404778981,1770539437936,-245.76,0.00027742,2]
[404778982,1770539437945,-200.0,0.00027747,2]
[404778983,1770539437954,-300.0,0.00027748,2]
[404778984,1770539437965,-245.76,0.00027793,2]
[404778985,1770539437977,-375.3941511,0.00027824,2]
[404778986,1770539437986,-11253.3905264,0.00027824,2]
[404778987,1770539437995,-165.8537,0.00027825,2]
[404778988,1770539438004,-245.76,0.00027844,2]
[404778989,1770539438013,-245.76,0.00027895,2]
[404778990,1770539438022,-151.0,0.00027931,7]
[404778991,1770539438032,-5000.0,0.00027934,2]
[404778992,1770539438050,-245.76,0.00027946,2]
[404778993,1770539438062,-200.0,0.00027988,2]
[404778994,1770539438071,-245.76,0.00027997,2]
[404778995,1770539438080,-291.68542325,0.00028,2]
[404778996,1770539438090,-245.76,0.00028048,2]
[404778997,1770539438099,-245.76,0.00028099,2]
[404778998,1770539438108,-3688.51,0.0002812,2]
[404778999,1770539438117,-245.76,0.00028151,2]
[404779000,1770539438126,-245.76,0.00028202,2]
[404779001,1770539438135,-155.0,0.00028227,2]
[404779003,1770539438144,-245.76,0.00028253,2]
[404779005,1770539438153,-245.76,0.00028304,2]
[404779007,1770539438163,-245.76,0.00028355,2]
[404779008,1770539438172,-1000.0,0.0002836,20]
[404779010,1770539438182,-245.76,0.00028406,2]
[404779012,1770539438191,-245.76,0.00028457,2]
[404779013,1770539438201,-245.76,0.00028508,2]
[404779014,1770539438211,-420.0,0.00028549,2]
[404779015,1770539438223,-245.76,0.00028559,2]
[404779016,1770539438233,-250.0,0.0002856,2]
[404779017,1770539438243,-245.76,0.0002861,2]
[404779018,1770539438252,-245.76,0.00028662,2]
[404779019,1770539438262,-245.76,0.00028713,2]
[404779020,1770539438272,-2500.0,0.00029151,2]
[404779021,1770539438282,-2259.25,0.00029251,2]
[404779022,1770539438292,-1272.0,0.00029391,2]
[404779023,1770539438301,-1206.0,0.00029391,2]
[404779024,1770539438311,-917.0,0.00029391,2]
[404779025,1770539438321,-3484.0,0.00029391,2]
[404779026,1770539438330,-2447.0,0.00029391,2]
[404779027,1770539438339,-10046.78492944,0.00029453,2]
[404779028,1770539438348,-500.0,0.00029691,3]
[404779029,1770539438357,-1000.0,0.00029864,2]
[404779030,1770539438367,-119708.0,0.000299,2]
[404779031,1770539438377,-150.0,0.00030056,2]
[404779032,1770539438387,-150.0,0.00030056,2]
[404779033,1770539438396,-218.977161,0.00030056,14]
[404779034,1770539438406,-1074.73779554,0.0003013,2]
[404779035,1770539438416,-12763.50366991,0.0003013,2]
[404779036,1770539438426,-2337.45790709,0.0003013,2]
[404779037,1770539438435,-5529.0,0.000302,3]
[404779038,1770539438445,-151.0,0.00030397,7]
[404779039,1770539438455,-500.0,0.00030411,2]
[404779040,1770539438464,-5529.0,0.000305,5]
[404779041,1770539438477,-566.98276012,0.000307,2]
[404779042,1770539438486,-587.0,0.00030884,2]
[404779043,1770539438496,-155.0,0.0003105,2]
[404779044,1770539438506,-10046.78492944,0.00031281,2]
[404779045,1770539438517,-2510.9708303,0.0003135,2]
[404779046,1770539438526,-600.0,0.00031603,2]
[404779047,1770539438536,-522.54,0.00031603,2]
[404779048,1770539438546,-560.2733235,0.00032137,2]
[404779049,1770539438556,-210.0,0.00032223,2]
[404779050,1770539438565,-1272.0,0.00032391,2]
[404779051,1770539438575,-1206.0,0.00032391,2]
[404779052,1770539438585,-917.0,0.00032391,2]
[404779053,1770539438594,-3484.0,0.00032391,2]
[404779054,1770539438604,-2447.0,0.00032391,2]
[404779055,1770539438614,-249.0,0.00032545,2]
[404779056,1770539438624,-566.98276011,0.00032611,2]
[404779057,1770539438633,-509.0,0.00032616,2]
[404779058,1770539438642,-168.0,0.00033,14]
[404779059,1770539438652,-500.0,0.00033024,2]
[404779060,1770539438666,-500.0,0.00033025,2]
[404779061,1770539438676,-500.424752,0.00033026,2]
[404779062,1770539438686,-10046.78492944,0.0003311,2]
[404779063,1770539438695,-823.0,0.00033409,2]
[404779064,1770539438706,-155.0,0.00033872,2]
[404779065,1770539438715,-509.0,0.00034439,4]
[404779066,1770539438727,-566.98276011,0.00034523,2]
[404779067,1770539438739,-1145.2456679,0.00034904,20]
[404779068,1770539438749,-1080.04014947,0.00034904,20]
[404779069,1770539438759,-1009.03821475,0.00034904,20]
[404779070,1770539438768,-1022.44974555,0.00034904,20]
[404779071,1770539438778,-1006.31730173,0.00034904,20]
[404779072,1770539438787,-1030.4809706,0.00034904,20]
[404779073,1770539438797,-1039.00434121,0.00034904,20]
[404779074,1770539438806,-1276.82840995,0.00034904,20]
[404779075,1770539438815,-1500.0,0.00034904,15]
[404779076,1770539438825,-1500.0,0.00034904,15]
[404779077,1770539438834,-2605.711302,0.00034904,15]
[404779078,1770539438844,-150.0,0.00034904,2]
[404779079,1770539438853,-10046.78492944,0.00034938,2]
[404779080,1770539438863,-151.0,0.00035257,14]
[404779081,1770539438872,-123103.44549684,0.0003526,2]
[404779082,1770539438882,-151.0,0.0003526,28]
[404779083,1770539438891,-151.0,0.0003526,28]
[404779084,1770539438900,-151.0,0.0003526,28]
[404779085,1770539438909,-151.0,0.0003526,7]
[404779086,1770539438919,-212.89576,0.0003526,7]
[404779087,1770539438928,-1272.0,0.00035391,2]
[404779088,1770539438938,-1206.0,0.00035391,2]
[404779089,1770539438946,-917.0,0.00035391,2]
[404779090,1770539438955,-3484.0,0.00035391,2]
[404779091,1770539438965,-2447.0,0.00035391,2]
[404779092,1770539438978,-1000.0,0.00035615,2]
[404779093,1770539438987,-200.0,0.00035616,2]
[404779094,1770539438996,-200.0,0.00035616,2]
[404779095,1770539439005,-182.34249586,0.00035635,15]
[404779096,1770539439014,-2000.0,0.000359,2]
[404779097,1770539439023,-200.0,0.00035972,2]
[404779098,1770539439033,-200.0,0.00035972,2]
[404779099,1770539439042,-151.0,0.00035997,14]
[404779100,1770539439052,-160.0,0.00036,2]
[404779101,1770539439062,-185509.86715628,0.00036,2]
[404779102,1770539439072,-151.0,0.00036,7]
[404779103,1770539439083,-487.0,0.00036,2]
[404779104,1770539439093,-670.71,0.00036,2]
[404779105,1770539439103,-1152.0,0.00036142,2]
[404779106,1770539439112,-509.0,0.00036261,6]
[404779107,1770539439122,-200.0,0.00036332,2]
[404779108,1770539439131,-200.0,0.00036332,2]
[404779109,1770539439140,-566.98276011,0.00036434,2]
[404779110,1770539439149,-1000.0,0.00036439,14]
[404779111,1770539439159,-150.0,0.00036649,2]
[404779112,1770539439169,-200.0,0.00036695,2]
[404779113,1770539439178,-200.0,0.00036695,2]
[404779114,1770539439188,-2804.0,0.000367,7]
[404779115,1770539439197,-1000.0,0.00036713,14]
[404779116,1770539439206,-169.58,0.00036727,2]
[404779117,1770539439215,-10046.78492944,0.00036766,2]
[404779118,1770539439226,-151.0,0.00036782,14]
[404779119,1770539439236,-1000.0,0.00036852,2]
[404779120,1770539439245,-227.55,0.00036918,120]
[404779121,1770539439255,-1000.0,0.00036987,14]
[404779122,1770539439265,-1454.75,0.00037,120]
[404779123,1770539439274,-200.0,0.0003706,2]
[404779124,1770539439284,-200.0,0.00037062,2]
[404779125,1770539439294,-200.0,0.00037062,2]
[404779126,1770539439303,-780.35191,0.000371,10]
[404779127,1770539439314,-689.9,0.00037155,2]
[404779128,1770539439324,-152.0,0.00037188,3]
[404779129,1770539439334,-152.56,0.0003719,2]
[404779130,1770539439345,-3516.15150051,0.000372,120]
[404779131,1770539439355,-3516.1515005,0.000372,120]
[404779132,1770539439366,-3516.1515005,0.000372,120]
[404779133,1770539439376,-2000.0,0.000372,7]
[404779134,1770539439386,-168.0,0.00037215,2]
[404779135,1770539439397,-1000.0,0.00037261,14]
[404779136,1770539439407,-200.0,0.00037268,2]
[404779137,1770539439417,-260.43751861,0.0003738,5]
[404779138,1770539439429,-169.56,0.00037455,2]
[404779139,1770539439438,-10998.0,0.00037499,5]
[404779140,1770539439448,-168.0,0.00037499,2]
[404779141,1770539439457,-985.0,0.000375,2]
[404779142,1770539439467,-787.0,0.000375,2]
[404779143,1770539439478,-941.53620476,0.00037512,2]
[404779144,1770539439487,-1000.0,0.00037535,14]
[404779145,1770539439496,-168.0,0.00037651,2]
[404779146,1770539439506,-9463.34,0.0003768,2]
[404779147,1770539439518,-2000.0,0.000377,120]
[404779148,1770539439527,-333.33333,0.0003771,93]
[404779149,1770539439536,-333.33334,0.0003771,93]
[404779150,1770539439546,-200.0,0.00037714,2]
[404779151,1770539439557,-168.0,0.00037715,2]
[404779152,1770539439568,-1000.0,0.00037808,14]
[404779153,1770539439577,-428.35,0.00037925,120]
[404779154,1770539439587,-1000.0,0.00038082,14]
[404779155,1770539439596,-212.7,0.00038083,14]
[404779156,1770539439607,-277.35679052,0.00038083,8]
[404779157,1770539439617,-248.02173749,0.00038083,8]
[404779158,1770539439628,-209.40437684,0.00038083,8]
[404779159,1770539439638,-217.15233878,0.00038083,8]
[404779160,1770539439647,-225.18697532,0.00038083,8]
[404779162,1770539439657,-233.51889341,0.00038083,8]
[404779163,1770539439671,-242.15909246,0.00038083,8]
[404779164,1770539439680,-251.11897888,0.00038083,8]
[404779166,1770539439690,-260.4103811,0.00038083,8]
[404779167,1770539439699,-270.0455652,0.00038083,8]
[404779168,1770539439710,-280.03725112,0.00038083,8]
[404779169,1770539439721,-290.39862941,0.00038083,8]
[404779170,1770539439731,-301.1433787,0.00038083,8]
[404779171,1770539439742,-509.0,0.00038084,8]
[404779172,1770539439751,-200.0,0.00038088,2]
[404779173,1770539439761,-200.0,0.0003809,2]
[404779174,1770539439770,-200.0,0.0003809,2]
[404779175,1770539439779,-333.33333,0.0003809,97]
[404779176,1770539439788,-333.33334,0.0003809,97]
[404779177,1770539439798,-333.33333,0.0003809,97]
[404779178,1770539439806,-333.33333,0.0003809,97]
[404779179,1770539439815,-168.0,0.00038148,2]
[404779180,1770539439824,-716.11388473,0.0003819,2]
[404779181,1770539439833,-168.0,0.00038284,2]
[404779182,1770539439842,-566.98276011,0.00038345,2]
[404779183,1770539439851,-166.66,0.0003835,2]
[404779184,1770539439860,-1000.0,0.00038356,14]
[404779185,1770539439869,-212.7,0.00038357,30]
[404779186,1770539439878,-600.0,0.00038375,2]
[404779187,1770539439887,-522.54,0.00038375,2]
[404779188,1770539439896,-1272.0,0.00038391,2]
[404779189,1770539439906,-1206.0,0.00038391,2]
[404779190,1770539439915,-917.0,0.00038391,2]
[404779191,1770539439924,-3484.0,0.00038391,2]
[404779192,1770539439933,-2447.0,0.00038391,2]
[404779193,1770539439941,-200.0,0.00038471,2]
[404779194,1770539439950,-200.0,0.00038471,2]
[404779195,1770539439959,-150.0,0.00038482,2]
[404779196,1770539439968,-169.58,0.00038551,2]
[404779197,1770539439978,-168.0,0.00038579,2]
[404779198,1770539439988,-10046.78492944,0.00038594,2]
[404779199,1770539439997,-152.0,0.000386,18]
[404779200,1770539440006,-150.19063,0.000386,10]
[404779201,1770539440015,-168.0,0.00038603,2]
[404779202,1770539440024,-1000.0,0.0003863,14]
[404779203,1770539440033,-222.54,0.00038631,2]
[404779204,1770539440042,-212.7,0.00038631,30]